Cogmind - Beta 15 @@@ ROGUE MODE // 2025.05.15 @ 21:10:36 Player: jumpy Result: Destroyed by G-34 Mercenary with Small Laser Performance ------------- Evolutions (0) 0 Regions Visited (2) 400 Robots Destroyed (15) 75 Value Destroyed (243) 243 Prototype IDs (0) 0 Alien Tech Used (0) 0 Bonus (0) 0 TOTAL SCORE: 718 Bonus ------- None Cogmind --------- Core Integrity 0/250 Matter 300/300 Energy 250/250 System Corruption 0% Temperature Cool (6) Movement Walking (120) Location -10/Mines Parts ------- > --- POWER (1) -------- Ion Engine > --- PROPULSION (2) --- Aluminum Leg Aluminum Leg > --- UTILITY (2) ------ Small Storage Unit > --- WEAPON (2) ------- Small Laser > --- INVENTORY (8) ---- Ion Engine Light Ion Engine Compact Wheel Compact Wheel Improved Terrain Scanner Seismic Detector Peak State ------------ > --- POWER ------------ Ion Engine > --- PROPULSION ------- Light Treads Light Treads > --- UTILITY ---------- Small Storage Unit Seismic Detector > --- WEAPON ----------- Medium Laser Assault Rifle > --- INVENTORY -------- Light Ion Engine Compact Wheel Compact Wheel Improved Terrain Scanner Improved Terrain Scanner Assault Rifle [Rating: 8] Favorites ----------- Power Ion Engine Engine Ion Engine Propulsion Light Treads Treads Light Treads Leg Aluminum Leg Utility Small Storage Unit Device Seismic Detector Storage Small Storage Unit Weapon Assault Rifle Energy Gun Medium Laser Ballistic Gun Assault Rifle Special Weapon Mining Laser Build | -11 -10 -10 ------- Run | Yrd Mat Min Slots Evolved . | . . . Power . | . . . Propulsion . | . . . Utility . | . . . Weapon . | . . . Parts Attached 16 | 7 . 9 Power 3 | 1 . 2 Engine 3 | 1 . 2 Core . | . . . Reactor . | . . . Propulsion 4 | 2 . 2 Treads 2 | 2 . . Leg 2 | . . 2 Wheel . | . . . Hover . | . . . Flight . | . . . Utility 2 | 2 . . Device 1 | 1 . . Storage 1 | 1 . . Processor . | . . . Hackware . | . . . Protection . | . . . Artifact . | . . . Weapon 7 | 2 . 5 Energy Gun 3 | 1 . 2 Energy Cannon . | . . . Ballistic Gun 2 | 1 . 1 Ballistic Cannon . | . . . Launcher . | . . . Special Weapon 2 | . . 2 Impact Weapon . | . . . Slashing Weapon . | . . . Piercing Weapon . | . . . Special Melee Weapon . | . . . Unidentified Prototypes . | . . . Parts Lost 6 | . . 6 Power . | . . . Propulsion 1 | . . 1 Utility 1 | . . 1 Weapon 4 | . . 4 Highest Loss Streak 2 | . . 2 To Critical Strikes . | . . . Average Backups 5 | 4 6 5 Power 1 | . 1 1 Propulsion 1 | 1 2 2 Utility 1 | . 2 2 Weapon . | . 1 . Tool/Special . | . . . Unused Backups 6 | 1 . 5 Power 1 | . . 1 Propulsion 2 | . . 2 Utility 3 | 1 . 2 Weapon . | . . . Tool/Special . | . . . Average Slot Usage (%) 92 | . 100 91 Engine 14 | . 14 14 Treads 26 | . 28 25 Leg 1 | . . 1 Device 9 | . 14 9 Storage 14 | . 14 14 Energy Gun 9 | . 14 9 Ballistic Gun 12 | . 14 12 Special Weapon 3 | . . 3 Peak Build Rating 8 | 8 7 7 Average Rating 6 | 5 7 6 On Entrance 4 | . 7 7 Naked Turns . | . . . Heaviest Build 15 | 15 15 15 Greatest Support 40 | 40 40 40 Greatest Overweight (x) 1 | . . 1 Average Overweight (x) . | . . . Largest Inventory Capacity 8 | 8 8 8 Average Capacity 7 | 7 8 8 Most Carried 7 | 7 6 6 Average Carried 5 | 4 6 5 Final Capacity 8 | 8 8 8 Final Carried 6 | 6 6 6 Class Distribution -------------------- 96% | Mutant 3% | Scavenger-Mutant Dominant Class ---------------- Mutant | -10/Materials Mutant | -10/Mines Resources | -11 -10 -10 ----------- Run | Yrd Mat Min Matter Collected 462 | 303 . 159 Remotely . | . . . Salvage Created 397 | 91 . 306 Parts 27 | 6 . 21 Haulers Intercepted . | . . . Recyclers Shooed . | . . . Parts Field Recycled . | . . . Retrieved Matter . | . . . Parts Self-Destructed . | . . . Prevented . | . . . Kills | -11 -10 -10 ------- Run | Yrd Mat Min Combat Hostiles Destroyed 13 | . . 13 Melee 1 | . . 1 Guns 12 | . . 12 Classes Destroyed 5 | 2 . 3 Tunneler 4 | 2 . 2 Recycler 1 | 1 . . Swarmer 6 | . . 6 Grunt 4 | . . 4 Assembled 3 | . . 3 Best Kill Streak 4 | 1 . 4 Combat Bots Only 3 | . . 3 Max Kills in Single Turn 1 | 1 . 1 Gunslinging . | . . . Exploded . | . . . Melee 1 | . . 1 Uniques/NPCs Destroyed . | . . . Combat | -11 -10 -10 -------- Run | Yrd Mat Min Hostile Shots Fired 123 | . . 123 Missed 28 | . . 28 Hits 95 | . . 95 Projectile 95 | . . 95 Critical Strikes 1 | . . 1 Damage Taken 1047 | . . 1047 Core 257 | . . 257 Absorbed by Shields . | . . . Core Remaining (%) 100 | 100 . . Volleys Fired 72 | 11 . 61 Largest 2 | 2 . 2 Hottest 120 | 70 . 120 Shots Fired 96 | 22 . 74 Gun 74 | 22 . 52 Cannon . | . . . Launcher . | . . . Special 22 | . . 22 Kinetic 46 | 11 . 35 Thermal 50 | 11 . 39 Explosive . | . . . Electromagnetic . | . . . Robot Hit Streak 6 | 3 . 6 Robot Miss Streak 3 | 2 . 3 Penetration Max . | . . . Secondary Targets . | . . . Shots Hit Robots 47 | 13 . 34 Core Hits 25 | 3 . 22 Critical Kills . | . . . Critical Parts Destroyed . | . . . Critical Strikes . | . . . Melee Attacks . | . . . Impact . | . . . Slashing . | . . . Piercing . | . . . Sneak Attacks . | . . . Combat Hostiles . | . . . Follow-up Attacks . | . . . Damage Inflicted 645 | 159 . 486 Guns 581 | 159 . 422 Cannons . | . . . Explosions . | . . . Melee . | . . . Ramming 40 | . . 40 Kinetic 442 | 109 . 333 Thermal 163 | 50 . 113 Explosive . | . . . Electromagnetic . | . . . Impact . | . . . Slashing . | . . . Piercing . | . . . Highest Corruption . | . . . Average Corruption . | . . . Corruption Purged . | . . . Corruption Blocked . | . . . Overload Shots . | . . . Overflow Damage . | . . . Projectiles . | . . . Explosions . | . . . Melee . | . . . Knockbacks . | . . . Impact . | . . . Kinetic . | . . . Secondary . | . . . Self-Inflicted Damage . | . . . Shots . | . . . Rammed 8 | . . 8 Targets Rammed 11 | . . 11 Kicked 2 | . . 2 Crushed 1 | . . 1 Highest Temperature 126 | 36 . 126 Average Temperature 32 | 13 . 36 Received Heat Transfer 315 | . . 315 Siege Activations . | . . . Martial Activations . | . . . Shielding Activations . | . . . Robots Disrupted . | . . . Combat Hostiles . | . . . Robots Corrupted . | . . . Combat Hostiles . | . . . Parts Fried . | . . . Impact Corruptions . | . . . Robots Melted . | . . . Combat Hostiles . | . . . Parts Melted 1 | . . 1 Heat Transferred 422 | 148 . 274 Parts Sabotaged . | . . . Parts Stolen . | . . . Parts Stripped . | . . . Power Chain Reactions . | . . . Alert | -11 -10 -10 ------- Run | Yrd Mat Min Maximum Alert Level . | . . . Low Security (%) 100 | 100 100 100 Level 1 . | . . . Level 2 . | . . . Level 3 . | . . . Level 4 . | . . . Level 5 . | . . . High Security . | . . . Max Security . | . . . Peak Influence 96 | 5 . 96 Initial . | . . . Average 11 | . . 14 Influence Increases 258 | 15 . 243 Destroy 0b10 Robot/C 200 | . . 200 Destroy 0b10 Robot/NC 25 | 15 . 10 Destroy Leader 30 | . . 30 Destroy Structure 3 | . . 3 Influence Decreases 178 | 15 . 163 Time Decay 148 | 15 . 133 Lost Part 30 | . . 30 Squads Dispatched . | . . . Investigation . | . . . Extermination . | . . . Reinforcement . | . . . Assault . | . . . Garrison . | . . . Intercept . | . . . Searches Triggered . | . . . Construction Impeded . | . . . Haulers Reinforced . | . . . Active Scanning Responses . | . . . Cargo Convoy Interrupts . | . . . Stealth | -11 -10 -10 --------- Run | Yrd Mat Min Distress Signals . | . . . Communications Jammed . | . . . Distress Signals . | . . . Times Spotted 21 | . 2 19 Peak Tracking Total 4 | . 2 4 Tactical Retreats . | . . . Traps | -11 -10 -10 ------- Run | Yrd Mat Min Traps Triggered . | . . . Indirectly . | . . . Trap Hack Attempts . | . . . Triggered . | . . . Disarmed . | . . . Reprogrammed . | . . . Reused . | . . . Traps Extracted . | . . . Installed . | . . . Triggered . | . . . Machines | -11 -10 -10 ---------- Run | Yrd Mat Min Machines Disabled . | . . . Max in Single Turn . | . . . Machines Repaired . | . . . Machines Dismantled . | . . . Machines Sabotaged . | . . . Overloaded Fab Kills . | . . . Hacking | -11 -10 -10 --------- Run | Yrd Mat Min Machines Accessed . | . . . Terminals . | . . . Fabricators . | . . . Repair Stations . | . . . Recycling Units . | . . . Scanalyzers . | . . . Garrison Access . | . . . Total Hacks . | . . . Successful . | . . . Failed . | . . . Catastrophic . | . . . Database Lockouts . | . . . Manual . | . . . Terminals . | . . . Fabricators . | . . . Repair Stations . | . . . Recycling Units . | . . . Scanalyzers . | . . . Garrison Access . | . . . Terminal Hacks . | . . . Fabricator Hacks . | . . . Repair Station Hacks . | . . . Recycling Unit Hacks . | . . . Scanalyzer . | . . . Garrison Access Hacks . | . . . Unauthorized Hacks . | . . . Terminals . | . . . Fabricators . | . . . Repair Stations . | . . . Recycling Units . | . . . Scanalyzers . | . . . Garrison Access . | . . . Data Cores Recovered . | . . . Used . | . . . Hacking Detections . | . . . Full Trace Events . | . . . Feedback Events . | . . . Feedback Blocked . | . . . Robot Schematics Acquired . | . . . Robots Built . | . . . Authchips . | . . . Time . | . . . Total Robot Build Rating . | . . . Part Schematics Acquired . | . . . Parts Built . | . . . Authchips . | . . . Time . | . . . Total Part Build Rating . | . . . Parts Repaired . | . . . Time . | . . . Parts Recycled . | . . . Recycled Matter . | . . . Retrieved Matter . | . . . Retrieved Components . | . . . Parts Scanalyzed . | . . . Part Schematics Acquired . | . . . Parts Damaged . | . . . Bothacking | -11 -10 -10 ------------ Run | Yrd Mat Min Used RIF Installer . | . . . Robots Hacked . | . . . Non-combat . | . . . Combat . | . . . Robot Hacks Applied . | . . . Relay Couplers Released . | . . . Fabnet Peak Effective % . | . . . Robots Rewired . | . . . Allies Hacked . | . . . Hacks Repelled . | . . . Allies | -11 -10 -10 -------- Run | Yrd Mat Min Total Allies . | . . . Largest Group . | . . . Highest-Rated Group . | . . . Highest-Rated Ally . | . . . Total Orders . | . . . Ally Attacks . | . . . Total Damage . | . . . Kills . | . . . Allies Corrupted . | . . . Allies Melted . | . . . Intel | -11 -10 -10 ------- Run | Yrd Mat Min Active Infowar (turns) 1113 | 91 146 876 Seismic 1113 | 91 146 876 Robot Analysis Total . | . . . Derelict Logs Recovered . | . . . Drone Launches . | . . . Drone Recoveries . | . . . Exploration | -11 -10 -10 ------------- Run | Yrd Mat Min Turns Passed 1720 | 249 146 1325 Spaces Moved 646 | 133 92 421 Core 13 | 13 . . Treads 591 | 120 92 379 Legs 42 | . . 42 Wheels . | . . . Hover . | . . . Flight . | . . . Fastest Speed 50 | 50 160 120 Average Speed 155 | 149 160 156 Slowest Speed 190 | 160 160 190 Overloaded Moves . | . . . Propulsion Burnouts . | . . . Robots Hopped . | . . . Potential Cave-ins . | . . . Cave-ins Triggered . | . . . Exploration Rate (%) 36 | 7 27 74 Regions Visited 2 Branch Regions 1 Pre-discovered Areas . | . . . Known Exits Taken . | . . . Unknown Exits Taken 2 | 1 1 . Scrap Searched 1 | . . 1 Spaces Dug . | . . . Terrain Destroyed 5 | . . 5 Melee . | . . . Projectile 5 | . . 5 AOE . | . . . Terrain Rammed . | . . . Walls Destroyed . | . . . Machines Disabled . | . . . Actions | -11 -10 -10 --------- Run | Yrd Mat Min Total 1208 | 159 91 958 Wait 454 | 1 . 453 Move 644 | 132 91 421 Hop . | . . . Pick Up 7 | 7 . . Fast Attach 12 | 7 . 5 Attach 1 | . . 1 Detach . | . . . Swap 3 | . . 3 Drop 4 | 1 . 3 Fire 72 | 11 . 61 Melee . | . . . Ram . | . . . Kick 2 | . . 2 Crush 9 | . . 9 Escape Stasis . | . . . Rewire . | . . . Trap . | . . . Miscellaneous . | . . . Route ------- -11/Scrapyard -10/Materials -10/Mines (discovered 1 exit: [*Mat]) History --------- Turn | Location | Event 6 | -11/Scrapyard | Discovered new exit (range 16) 250 | -11/Scrapyard | Entered Materials 308 | -10/Materials | Build established: Mutant 375 | -10/Materials | Discovered new exit (range 12) 396 | -10/Materials | Entered Mines 536 | -10/Mines | Discovered new exit (range 9) 717 | -10/Mines | Excavation squad dispatched 717 | -10/Mines | A large section of the Mines collapsed 967 | -10/Mines | Excavation squad dispatched 1611 | -10/Mines | Core integrity fell below 50% 1623 | -10/Mines | Core integrity fell below 20% 1721 | -10/Mines | Destroyed by G-34 Mercenary with Small Laser Last Messages --------------- 01629_ K-01 Serf collects debris. 01632_ Acquired Sml. Laser. 01633_ K-01 Serf collects debris. 01633_ G-34 Mercenary destroyed. 01636_ K-01 Serf collects debris. 01645_ Aluminum Leg melted. 01645_ G-47 Trooper destroyed. 01647_ K-01 Serf collects debris. 01652_ Acquired 10 matter. 01652_ K-01 Serf collects debris. 01658_ Acquired Aluminum Leg. 01660_ Dropped Lgt. Treads. 01662_ Acquired 20 matter. 01665_ K-01 Serf collects debris. 01668_ Kicked K-01 Serf. 01670_ Kicked K-01 Serf out of the way. 01672_ Acquired Aluminum Leg. 01673_ Acquired 4 matter. 01676_ Acquired 6 matter. 01686_ T-07 Excavator is excavating. Map ----- +----------------------------------------------------+ | ??????###???## ### #??##* ! = # | | ?????????????##### ##?#### ##??#"*[!! # | | ### #????????????## %##??????####??##"=%# ## | | #?????????????## #?????????????####### ## # | | #####??????????????# #?????????????## ##### # | | ???????????????????# #??????????????## ## ## # | | ???????????????????# #?????#####?????## ##"#### # | | ????????????########% #???## ##?????###"#"## %# | | ????????????# *!#?### ?????##"""" ### | | ????????????# =%### ??????# ##"#####?? | | ????????????# ######### ????????# "###????? | | ????????????# #???????# ?????????## ##?????? | | ??########### #????????# #??????????###??????? | | ??# #?????????# #???????????????????? | | #?# ###########?????????# | #???????????????????? | | ### #???????????????????# #???????????????????? | | ########????????????## #???????????????????? | | #???????????## ##???????????????????? | | ##### #############* ##????????????????????? | | ### ##???# =%%% *% =%%%##????????????????????? | | #?# #????##############[= ##???????????????????? | | ??# #?????????????????#### #???????????????????? | | ??# #???????????????????### ###?????????????????? | | ??# #?????????????########### #####?????????????? | | ??# #?????????????# #### ##????????????? | | ??? ??????????????#""" @ #????????????? | | #?? ??????????????#""" ##### ##???????????? | | #?? ??????????????#""" #??## ## #?????? | | #??#??????????????# #??# ??? | | ##????????????????#### ##?# $ ??? | | #???????????????????# #??# ## ######???? | | #????????# ####g #??## #??###????????? | | #???????????# g #???## #?????????????? | | #????????????# #????# ?????????????? | | #????????????###########????## #????????????? | | #????????????????????????????### #????????????? | | #???????????????????????????????# #????????????? | | #???????????????????????????????? ????????????? | | ##????????????????????????????????###????????????? | | ?????????????????????????????????????????????????? | | ?????????????????????????????????????????????????? | | ?????????????????????????????????????????????????? | | ?????????????????????????????????????????????????? | | ?????????????????????????????????????????????????? | | ?????????????????????????????????????????????????? | | ?????????????????????????????????????????????????? | | ?????????????????????????????????????????????????? | | ?????????????????????????????????????????????????? | | | | | +----------------------------------------------------+ Best States ------------- Heat Dissipation 25 Energy Generation 10 Energy Capacity 250 Matter Stores 300 Matter Capacity 300 Sight Range 16 Terrain Scan Density 10 Evasion (%) 55 Recoil Reduction 2 Item Schematics ----------------- None Robot Schematics ------------------ None Fabricated ------------ Nothing Repaired ---------- Nothing Alien Tech Used ----------------- None Achievements -------------- None Challenges ------------ None Game ------ Seed TerrabombSurveybotThrower Manual? 0 Play Time 00:06:53 Cumulative 95.4 hours Start 2025.05.15 @ 21:03:59 End 2025.05.15 @ 21:10:36 Sessions 1 Manual Loads 0 Difficulty Rogue Special Mode None Game No. 240 Rogue 240 Adventurer 0 Explorer 0 Win Type - Total 2 Types 2/0/0/0/0/0/0/0/0/0 Lore% 43 Gallery% 48 Achievement% 39 Wizard Run 0 Options --------- Layout 0 ASCII 0 Keyboard 0 Movement Numpad Keybinds 0 Fullscreen 2 Font 18/Terminus Map View 76x50 Zoom Use 0% Tactical HUD 1 Map Filters NONE Filters NONE Steam 1 RUN: 8c2bc8be-3751-41f0-b38f-e65feeb62dba